Cogmind - Beta 13 *** ADVENTURER MODE // 2024.03.26 @ 22:19:28 Player: Lucyna Result: Destroyed by G-34 Mercenary with Small Laser Performance ------------- Evolutions (0) 0 Regions Visited (1) 200 Robots Destroyed (11) 55 Value Destroyed (264) 264 Prototype IDs (0) 0 Alien Tech Used (0) 0 Bonus (0) 0 TOTAL SCORE: 519 Bonus ------- None Cogmind --------- Core Integrity 0/250 Matter 218/300 Energy 349/350 System Corruption 2% Temperature Cool (12) Movement Rolling (110) Ox2 Location -10/Materials Parts ------- > --- POWER (1) -------- (None) > --- PROPULSION (2) --- Aluminum Leg Wheel > --- UTILITY (2) ------ Large Storage Unit High-capacity Battery > --- WEAPON (2) ------- (None) > --- INVENTORY (15) --- Light Ion Engine Light Ion Engine Light Ion Engine Aluminum Leg Aluminum Leg Aluminum Leg Heat Sink Medium Storage Unit Medium Storage Unit Weapon Shielding Peak State ------------ > --- POWER ------------ Light Ion Engine > --- PROPULSION ------- Aluminum Leg Wheel > --- UTILITY ---------- Large Storage Unit High-capacity Battery > --- WEAPON ----------- Assault Rifle > --- INVENTORY -------- Light Ion Engine Light Ion Engine Light Ion Engine Aluminum Leg Aluminum Leg Aluminum Leg Heat Sink Medium Storage Unit Medium Storage Unit Weapon Shielding [Rating: 7] Favorites ----------- Power Light Ion Engine Engine Light Ion Engine Propulsion Aluminum Leg Leg Aluminum Leg Wheel Wheel Utility High-capacity Battery Storage High-capacity Battery Weapon Assault Rifle Ballistic Gun Assault Rifle Build | -11 -10 ------- Run | Yrd Mat Slots Evolved . | . . Power . | . . Propulsion . | . . Utility . | . . Weapon . | . . Parts Attached 11 | 5 6 Power 3 | 1 2 Engine 3 | 1 2 Core . | . . Reactor . | . . Propulsion 5 | 3 2 Treads . | . . Leg 3 | 2 1 Wheel 2 | 1 1 Hover . | . . Flight . | . . Utility 2 | . 2 Device . | . . Storage 2 | . 2 Processor . | . . Hackware . | . . Protection . | . . Artifact . | . . Weapon 1 | 1 . Energy Gun . | . . Energy Cannon . | . . Ballistic Gun 1 | 1 . Ballistic Cannon . | . . Launcher . | . . Special Weapon . | . . Impact Weapon . | . . Slashing Weapon . | . . Piercing Weapon . | . . Special Melee Weapon . | . . Unidentified Prototypes . | . . Parts Lost 2 | . 2 Power . | . . Propulsion 1 | . 1 Utility . | . . Weapon 1 | . 1 Highest Loss Streak 1 | . 1 To Critical Strikes . | . . Average Slot Usage (%) 71 | . 71 Engine 13 | . 13 Leg 14 | . 14 Wheel 5 | . 5 Storage 23 | . 23 Ballistic Gun 13 | . 13 Naked Turns . | . . Heaviest Build 29 | 5 29 Greatest Support 10 | 10 10 Greatest Overweight (x) 9 | . 9 Average Overweight (x) 1 | . 2 Largest Inventory Capacity 15 | 5 15 Average Capacity 11 | 5 12 Most Carried 12 | 5 12 Average Carried 7 | 3 8 Final Capacity 15 | 5 15 Final Carried 10 | 3 10 Class Distribution -------------------- 100% | Mutant Dominant Class ---------------- Mutant | -10/Materials Resources | -11 -10 ----------- Run | Yrd Mat Matter Collected 381 | 255 126 Remotely . | . . Salvage Created 310 | 38 272 Parts 27 | 2 25 Haulers Intercepted . | . . Recyclers Shooed . | . . Parts Field Recycled . | . . Retrieved Matter . | . . Parts Self-Destructed . | . . Prevented . | . . Kills | -11 -10 ------- Run | Yrd Mat Combat Hostiles Destroyed 10 | 1 9 Guns 10 | 1 9 Classes Destroyed 3 | 1 2 Tunneler 1 | . 1 Swarmer 4 | . 4 Grunt 6 | 1 5 Best Kill Streak 3 | 1 3 Combat Bots Only 3 | 1 3 Max Kills in Single Turn 1 | 1 1 Gunslinging . | . . Exploded . | . . Melee . | . . Uniques/NPCs Destroyed . | . . Combat | -11 -10 -------- Run | Yrd Mat Hostile Shots Fired 118 | 20 98 Missed 41 | 7 34 Damage Taken 607 | 111 496 Core 253 | 76 177 Absorbed by Shields . | . . Ignored by Resistances 198 | 35 163 Core Remaining (%) 69 | 69 . Volleys Fired 51 | 3 48 Largest 1 | 1 1 Hottest 20 | 20 20 Shots Fired 52 | 3 49 Gun 52 | 3 49 Cannon . | . . Launcher . | . . Special . | . . Kinetic 52 | 3 49 Thermal . | . . Explosive . | . . Electromagnetic . | . . Robot Hit Streak 19 | 3 19 Robot Miss Streak 2 | . 2 Penetration Max . | . . Secondary Targets . | . . Shots Hit Robots 38 | 3 35 Core Hits 20 | 3 17 Critical Kills 1 | . 1 Critical Parts Destroyed . | . . Critical Strikes 1 | . 1 Destroy 1 | . 1 Melee Attacks . | . . Impact . | . . Slashing . | . . Piercing . | . . Sneak Attacks . | . . Combat Hostiles . | . . Follow-up Attacks . | . . Damage Inflicted 501 | 38 463 Guns 488 | 36 452 Cannons . | . . Explosions . | . . Melee . | . . Ramming 13 | 2 11 Kinetic 488 | 36 452 Thermal . | . . Explosive . | . . Electromagnetic . | . . Impact . | . . Slashing . | . . Piercing . | . . Highest Corruption 2 | 2 2 Average Corruption 2 | 2 2 Corruption Purged . | . . Corruption Blocked . | . . Effects 13 | . 13 Message Errors 4 | . 4 Matter Fused 2 | . 2 Heat Flow Errors 3 | . 3 Energy Discharges 1 | . 1 Parts Rejected 1 | . 1 Data Loss (minor) 1 | . 1 Misfires 1 | . 1 Overload Shots . | . . Overflow Damage . | . . Projectiles . | . . Explosions . | . . Melee . | . . Knockbacks . | . . Impact . | . . Kinetic . | . . Secondary . | . . Self-Inflicted Damage 6 | 1 5 Shots . | . . Rammed 5 | 3 2 Targets Rammed 5 | 3 2 Kicked . | . . Crushed . | . . Highest Temperature 135 | . 135 Average Temperature 63 | . 63 Received Heat Transfer 330 | 78 252 Siege Activations . | . . Robots Corrupted . | . . Combat Hostiles . | . . Parts Fried . | . . Impact Corruptions . | . . Robots Melted . | . . Combat Hostiles . | . . Parts Melted . | . . Heat Transferred . | . . Parts Sabotaged . | . . Parts Stolen . | . . Parts Stripped . | . . Power Chain Reactions . | . . Alert | -11 -10 ------- Run | Yrd Mat Peak Influence 216 | 20 216 Initial 11 | . 11 Average 87 | 2 105 Maximum Alert Level 1 | . 1 Low Security (%) 77 | 100 72 Level 1 22 | . 27 Level 2 . | . . Level 3 . | . . Level 4 . | . . Level 5 . | . . High Security . | . . Max Security . | . . Squads Dispatched 1 | . 1 Investigation 1 | . 1 Extermination . | . . Reinforcement . | . . Assault . | . . Garrison . | . . Intercept . | . . Searches Triggered . | . . Construction Impeded . | . . Haulers Reinforced . | . . Active Scanning Responses . | . . Cargo Convoy Interrupts . | . . Stealth | -11 -10 --------- Run | Yrd Mat Distress Signals 2 | . 2 Communications Jammed . | . . Distress Signals . | . . Times Spotted 23 | 1 22 Peak Tracking Total 6 | 1 6 Tactical Retreats . | . . Traps | -11 -10 ------- Run | Yrd Mat Traps Triggered . | . . Indirectly . | . . Trap Hack Attempts . | . . Triggered . | . . Disarmed . | . . Reprogrammed . | . . Reused . | . . Traps Extracted . | . . Installed . | . . Triggered . | . . Machines | -11 -10 ---------- Run | Yrd Mat Machines Disabled . | . . Max in Single Turn . | . . Machines Repaired . | . . Machines Dismantled . | . . Machines Sabotaged . | . . Overloaded Fab Kills . | . . Hacking | -11 -10 --------- Run | Yrd Mat Machines Accessed 1 | . 1 Terminals 1 | . 1 Fabricators . | . . Repair Stations . | . . Recycling Units . | . . Scanalyzers . | . . Garrison Access . | . . Total Hacks 3 | . 3 Successful 2 | . 2 Failed 1 | . 1 Catastrophic . | . . Database Lockouts . | . . Manual . | . . Terminals 3 | . 3 Fabricators . | . . Repair Stations . | . . Recycling Units . | . . Scanalyzers . | . . Garrison Access . | . . Terminal Hacks 2 | . 2 Record 2 | . 2 Fabricator Hacks . | . . Repair Station Hacks . | . . Recycling Unit Hacks . | . . Scanalyzer . | . . Garrison Access Hacks . | . . Unauthorized Hacks . | . . Terminals . | . . Fabricators . | . . Repair Stations . | . . Recycling Units . | . . Scanalyzers . | . . Garrison Access . | . . Data Cores Recovered . | . . Used . | . . Hacking Detections 1 | . 1 Full Trace Events 1 | . 1 Feedback Events . | . . Feedback Blocked . | . . Robot Schematics Acquired . | . . Robots Built . | . . Authchips . | . . Time . | . . Total Robot Build Rating . | . . Part Schematics Acquired . | . . Parts Built . | . . Authchips . | . . Time . | . . Total Part Build Rating . | . . Parts Repaired . | . . Time . | . . Parts Recycled . | . . Recycled Matter . | . . Retrieved Matter . | . . Retrieved Components . | . . Parts Scanalyzed . | . . Part Schematics Acquired . | . . Parts Damaged . | . . Bothacking | -11 -10 ------------ Run | Yrd Mat Used RIF Installer . | . . Robots Hacked . | . . Non-combat . | . . Combat . | . . Robot Hacks Applied . | . . Relay Couplers Released . | . . Fabnet Peak Effective % . | . . Robots Rewired . | . . Allies Hacked . | . . Hacks Repelled . | . . Allies | -11 -10 -------- Run | Yrd Mat Total Allies . | . . Largest Group . | . . Highest-Rated Group . | . . Highest-Rated Ally . | . . Total Orders . | . . Ally Attacks . | . . Total Damage . | . . Kills . | . . Allies Corrupted . | . . Allies Melted . | . . Intel | -11 -10 ------- Run | Yrd Mat Robot Analysis Total . | . . Derelict Logs Recovered . | . . Drone Launches . | . . Drone Recoveries . | . . Exploration | -11 -10 ------------- Run | Yrd Mat Turns Passed 729 | 126 603 Spaces Moved 433 | 194 239 Core 234 | 168 66 Treads . | . . Legs . | . . Wheels 199 | 26 173 Hover . | . . Flight . | . . Fastest Speed 50 | 50 80 Average Speed 136 | 54 203 Slowest Speed 500 | 80 500 Overloaded Moves . | . . Propulsion Burnouts . | . . Robots Hopped . | . . Cave-ins Triggered . | . . Exploration Rate (%) 17 | 7 28 Regions Visited 1 Branch Regions . Pre-discovered Areas . | . . Known Exits Taken . | . . Unknown Exits Taken 1 | 1 . Scrap Searched . | . . Spaces Dug . | . . Terrain Destroyed . | . . Melee . | . . Projectile . | . . AOE . | . . Terrain Rammed . | . . Walls Destroyed . | . . Machines Disabled . | . . Actions | -11 -10 --------- Run | Yrd Mat Total 518 | 212 306 Wait 2 | . 2 Move 432 | 193 239 Hop . | . . Pick Up 15 | 7 8 Fast Attach 2 | . 2 Attach 7 | 5 2 Detach 2 | 1 1 Swap 2 | . 2 Drop . | . . Fire 51 | 3 48 Melee . | . . Ram 5 | 3 2 Kick . | . . Crush . | . . Escape Stasis . | . . Rewire . | . . Trap . | . . Miscellaneous . | . . Route ------- -11/Scrapyard -10/Materials (discovered 1 exit: [*Min]) History --------- Turn | Location | Event 2 | -11/Scrapyard | Met Revision 17 60 | -11/Scrapyard | Discovered new exit (range 8) 127 | -11/Scrapyard | Entered Materials 257 | -10/Materials | Core integrity fell below 50% 288 | -10/Materials | Discovered new exit (range 11) 313 | -10/Materials | Build established: Mutant 323 | -10/Materials | Core integrity fell below 20% 730 | -10/Materials | Destroyed by G-34 Mercenary with Small Laser Last Messages --------------- itself. The complex is divided into three primary levels--[Materials], [Factory], and [Research]--with a design focused on efficient development and production of advanced defensive forces. 00637_ ALERT: Suspicious activity at Terminal M005. Dispatching Investigation squad. 00641_ K-01 Serf cleans the Machine. 00651_ System corrupted: FCS attempts to trigger Assault Rifle. 00651_ System corrupted: Assault Rifle misfires. 00651_ T-07 Excavator destroyed. 00652_ K-01 Serf collects debris. 00669_ System corrupted: Matter fused (-9). 00681_ Slammed into U-05 Engineer. 00683_ R-06 Scavenger collects Seismic Detector. 00687_ R-06 Scavenger collects Mining Laser. 00700_ Assault Rifle destroyed. 00724_ System corrupted: Lgt. Ion Engine rejected. Map ----- +----------------------------------------------------+ | ???????????????# #???????????????????????? | | ???????????????# #???????????????????????? | | ???????????????# #???????????????????????? | | ???????????????# """ #???????????????????????? | | ???????????????# """ #???????????????????????? | | ???????????????# "Y" """ ###########?????????????? | | ???????????????# """ # #?????????????? | | ???????????????# # #?????????????? | | +####################+#### """"""" #?????????????? | | [%! # """"""" #?????????????? | | =% + """"""" #?????????????? | | = # """"""" #?????????????? | | ###### #####+######### # """"""" #?????????????? | | ?????# #?????????????# # #?????????????? | | ?????# #?????????????# ###########?????????????? | | ?????# #?????????????# #???????????????????????? | | ?????# #?????????????# #???????????????????????? | | ?????# #?????????????# #???????????????????????? | | ?????# #?????????????# #???????????????????????? | | ?????# #?????????????# #???????????????????????? | | ?????# #?????????????# #######?????????????????? | | ?????# #?????????????# ## !!##????????????????? | | ?????# #?????????????# #! !######???????????? | | ????? #?????????????# # # #???????????? | | ?????# #?????????????# # * # #???????????? | | ?????? ??????????????# @ g # #???????????? | | ??????????????????#????# g + #???????????? | | ??????????????????# ???# # #???????????? | | ??????????????????# ??# # #???????????? | | ??????????????????# ?# # #???????????? | | ??????????????????# # g/ #???????????? | | ??????????????????# # ###### + #????????? | | ???????????????????# + #######+#### #????????? | | ???????????"??"????## # ## #??????????? | | ??????????#" !"! ???#### ## ""#??????????? | | ??????????#" "##### # """ T"#??????????? | | ??????? % % # """ ""#??????????? | | ??????? < % T + """ #??????????? | | ??????? # #??????????? | | ????????### ##### # #??????????? | | ??????????#######?????## ## #??????????? | | ???????????????????????# ############??????????? | | ???????????????????????# #?????????????????????? | | ???????????????????????# #?????????????????????? | | ???????????????????????# #?????????????????????? | | ???????????????????????# #?????????????????????? | | ???????????????????????# #?????????????????????? | | ???????????????????????# #?????????????????????? | | ??????????????????????? ?????????????????????? | | ??????????????????????? ????????????????????? | +----------------------------------------------------+ Best States ------------- Heat Dissipation 25 Energy Generation 10 Energy Capacity 375 Matter Stores 300 Matter Capacity 300 Sight Range 16 Terrain Scan Density 10 Resistance: KI 20 Resistance: TH 20 Resistance: EX 20 Resistance: EM 20 Resistance: I 20 Resistance: S 20 Resistance: P 20 Evasion (%) 50 Offensive Hacking 10 Item Schematics ----------------- None Robot Schematics ------------------ None Fabricated ------------ Nothing Alien Tech Used ----------------- None Achievements -------------- None Challenges ------------ None Game ------ Seed FirePhysicsTearclaws Manual? 0 Play Time 00:20:47 Cumulative 4.9 hours Start 2024.03.26 @ 19:20:32 End 2024.03.26 @ 22:19:28 Sessions 1 Manual Loads 0 Difficulty Adventurer Special Mode None Game No. 3 Rogue 0 Adventurer 3 Explorer 0 Win Type - Total 0 Types 0/0/0/0/0/0/0/0/0 Lore% 1 Gallery% 4 Achievement% 4 Wizard Run 0 Options --------- Layout 1 ASCII 1 Keyboard 0 Movement Mouse Keybinds 0 Fullscreen 2 Font 24/Smallcaps Map View 50x35 Zoom Use 0% Tactical HUD 1 Map Filters NONE Filters NONE Steam 1 RUN: 5cc6e798-615a-4fbe-abb1-3706648e22cf